fUSD/lending_fUSD_20240707
["ID","MTS","AMOUNT","RATE_DAILY","PERIOD"]
[331388946,1720323034340,-3064.6703974,0.0001399,2]
[331388947,1720323034359,-2507.4575979,0.0001399,2]
[331388948,1720323034378,-164.91172843,0.0001399,2]
[331388949,1720323034398,-164.91172843,0.0001399,2]
[331388950,1720323034418,-19927.4422344,0.0001399,2]
[331388951,1720323034438,-16192.5867701,0.0001399,2]
[331388952,1720323034460,-12457.7313057,0.0001399,2]
[331388953,1720323034471,-3294.29050871,0.00013991,2]
[331388954,1720323034481,-160.0,0.00013991,2]
[331388955,1720323034491,-16000.0,0.00013991,2]
[331388956,1720323034501,-5560.0,0.00013999,2]
[331388957,1720323034511,-231.13762313,0.00013999,2]
[331388958,1720323034521,-1000.0,0.00013999,2]
[331388959,1720323034531,-1000.0,0.00013999,2]
[331388960,1720323034540,-1000.0,0.00013999,2]
[331388961,1720323034549,-1000.0,0.00013999,2]
[331388962,1720323034559,-1000.0,0.00013999,2]
[331388963,1720323034568,-1000.0,0.00013999,2]
[331388964,1720323034578,-1000.0,0.00013999,2]
[331388965,1720323034587,-1000.0,0.00013999,2]
[331388966,1720323034597,-1000.0,0.00013999,2]
[331388967,1720323034607,-1000.0,0.00013999,2]
[331388968,1720323034616,-1000.0,0.00013999,2]
[331388969,1720323034626,-1000.0,0.00013999,2]
[331388970,1720323034635,-1000.0,0.00013999,2]
[331388971,1720323034645,-1000.0,0.00013999,2]
[331388972,1720323034654,-1000.0,0.00013999,2]
[331388973,1720323034664,-1000.0,0.00013999,2]
[331388974,1720323034674,-1000.0,0.00013999,2]
[331388975,1720323034684,-1000.0,0.00013999,2]
[331388976,1720323034695,-1000.0,0.00013999,2]
[331388977,1720323034704,-1000.0,0.00013999,2]
[331388978,1720323034714,-1000.0,0.00013999,2]
[331388979,1720323034723,-1000.0,0.00013999,2]
[331388980,1720323034733,-1000.0,0.00013999,2]
[331388981,1720323034742,-1000.0,0.00013999,2]
[331388982,1720323034752,-1000.0,0.00013999,2]
[331388983,1720323034761,-1000.0,0.00013999,2]
[331388984,1720323034771,-1000.0,0.00013999,2]
[331388985,1720323034781,-1000.0,0.00013999,2]
[331388986,1720323034791,-1000.0,0.00013999,2]
[331388987,1720323034800,-1000.0,0.00013999,2]
[331388988,1720323034809,-1000.0,0.00013999,2]
[331388989,1720323034818,-1000.0,0.00013999,2]
[331388990,1720323034828,-1000.0,0.00013999,2]
[331388991,1720323034837,-1000.0,0.00013999,2]
[331388992,1720323034847,-1000.0,0.00013999,2]
[331388993,1720323034856,-1000.0,0.00013999,2]
[331388994,1720323034866,-1000.0,0.00013999,2]
[331388995,1720323034876,-1000.0,0.00013999,2]
[331388996,1720323034885,-1000.0,0.00013999,2]
[331388997,1720323034895,-1000.0,0.00013999,2]
[331388998,1720323034905,-1000.0,0.00013999,2]
[331388999,1720323034914,-225.24658808,0.00013999,2]
[331389000,1720323034924,-500.0,0.00013999,2]
[331389001,1720323034933,-521.83957323,0.00013999,2]
[331389002,1720323034945,-500.0,0.00013999,2]
[331389003,1720323034955,-500.0,0.00013999,2]
[331389004,1720323034965,-437.46067203,0.00013999,2]
[331389005,1720323034975,-640.53739784,0.00013999,2]
[331389006,1720323034985,-500.0,0.00013999,2]
[331389007,1720323034995,-500.0,0.00013999,2]
[331389008,1720323035004,-500.0,0.00013999,2]
[331389009,1720323035014,-500.0,0.00013999,2]
[331389010,1720323035023,-481.93115438,0.00013999,2]
[331389011,1720323035034,-350.28819473,0.00013999,2]
[331389012,1720323035044,-500.0,0.00013999,2]
[331389013,1720323035054,-602.63522871,0.00013999,2]
[331389014,1720323035064,-500.0,0.00013999,2]
[331389015,1720323035074,-500.0,0.00013999,2]
[331389016,1720323035084,-500.0,0.00013999,2]
[331389017,1720323035094,-500.0,0.00013999,2]
[331389018,1720323035103,-500.0,0.00013999,2]
[331389019,1720323035113,-500.0,0.00013999,2]
[331389020,1720323035123,-500.0,0.00013999,2]
[331389021,1720323035134,-500.0,0.00013999,2]
[331389022,1720323035143,-500.0,0.00013999,2]
[331389023,1720323035154,-500.0,0.00013999,2]
[331389024,1720323035164,-500.0,0.00013999,2]
[331389025,1720323035174,-249.39707126,0.00013999,2]
[331389026,1720323035184,-500.0,0.00013999,2]
[331389027,1720323035195,-499.99999999,0.00013999,2]
[331389028,1720323035204,-5925.63188713,0.00013999,2]
[331389029,1720323035214,-212.29705528,0.00013999,2]
[331389030,1720323035224,-664.0,0.00014,2]
[331389031,1720323035234,-258759.2970333,0.00014,2]
[331389032,1720323035247,-5439.96,0.00014,2]
[331389033,1720323035259,-5622.20547566,0.00014,2]
[331389034,1720323035271,-300.3,0.00014,2]
[331389035,1720323035282,-565.82,0.00014,2]
[331389036,1720323035336,-488.57461296,0.00014,2]
[331389037,1720323035347,-5089.5919598,0.00014,2]
[331389038,1720323035359,-4327.95496066,0.00014,2]
[331389039,1720323035372,-15739.95000001,0.00014,2]
[331389040,1720323035383,-2815.3,0.00014,2]
[331389041,1720323035396,-483.39404204,0.00014,2]
[331389113,1720323039672,-376.75,0.0001399,3]
[331389114,1720323039683,-290.95999964,0.00014,2]
[331389115,1720323039699,-2815.76809505,0.00014,2]
[331389118,1720323039920,-391.50034417,0.00014,2]
[331389123,1720323039933,-30050.0000001,0.00014,2]
[331389125,1720323039951,-1315.94695395,0.00014,2]
[331389128,1720323039964,-987.00002,0.00014,2]
[331389130,1720323039977,-1978.07555297,0.00014,2]
[331389133,1720323039989,-5600.0,0.00014,2]
[331389136,1720323040002,-327.20805323,0.00014,2]
[331389138,1720323040014,-502.07062434,0.00014,2]
[331389140,1720323040026,-768957.39196732,0.00014,2]
[331389143,1720323040038,-540.33523103,0.00014,2]
[331389145,1720323040051,-2752.47299442,0.00014,2]
[331389147,1720323040063,-2923.93999999,0.00014,2]
[331389149,1720323040075,-953.83724815,0.00014,2]
[331389178,1720323041011,-1328530.25328159,0.00014,2]
[331389180,1720323041024,-8407.25204638,0.00014,2]
[331389182,1720323041036,-514.90811892,0.00014,2]
[331389184,1720323041048,-560.58454009,0.00014,2]
[331389185,1720323041061,-560.74648956,0.00014,2]
[331389186,1720323041072,-13857.20132762,0.00014,2]
[331389187,1720323041084,-9613.92971346,0.00014,2]
[331389188,1720323041097,-609.19027951,0.00014,2]
[331389189,1720323041109,-301.14,0.00014,2]
[331389190,1720323041121,-13256.87732019,0.00014,2]
[331389191,1720323041134,-560.8914385,0.00014,2]
[331389192,1720323041147,-1054.88820197,0.00014,2]
[331389193,1720323041160,-1684.53,0.00014,2]
[331389194,1720323041172,-910.0,0.00014,2]
[331389195,1720323041184,-920.5487528,0.00014,2]
[331389230,1720323043208,-155.0,0.00013543,2]
[331389231,1720323043218,-360.85689136,0.00014,2]
[331389232,1720323043230,-2325.0,0.00014,2]
[331389233,1720323043243,-20846.16339031,0.00014,2]
[331389234,1720323043254,-2835.0,0.00014,2]
[331389235,1720323043266,-700.0,0.00014,2]
[331389236,1720323043278,-435.55847708,0.00014,2]
[331389244,1720323044818,-536.28001313,0.00014,2]
[331389245,1720323044830,-30000.0,0.00014,2]
[331389246,1720323044870,-1822.31939735,0.00014,2]
[331389247,1720323044882,-279.6,0.00014,2]
[331389248,1720323044894,-5960.15353982,0.00014,2]
[331389249,1720323044906,-384.04787661,0.00014,2]
[331389250,1720323044918,-725.08301941,0.00014,2]
[331389251,1720323044931,-1023.21695258,0.00014,2]
[331389252,1720323044943,-1081.77587847,0.00014,2]
[331389253,1720323044956,-364.00000001,0.00014,2]
[331389254,1720323044968,-4657.99160591,0.00014,2]
[331389255,1720323044980,-3186.3273669,0.00014,2]
[331389256,1720323045079,-302.23,0.00014,2]
[331389257,1720323045091,-300.1,0.00014,2]
[331389258,1720323045513,-301.132,0.00014,2]
[331389259,1720323045525,-274.264,0.00014,2]
[331389260,1720323045538,-309.865,0.00014,2]
[331389261,1720323045549,-5236.13508162,0.00014,2]
[331389262,1720323046289,-270.462826,0.00014,2]
[331389268,1720323046301,-819.48864063,0.00014,2]
[331389274,1720323046316,-3322.05835592,0.00014,2]
[331389278,1720323046332,-1839.23938075,0.00014,2]
[331389319,1720323046707,-2160.074,0.00014,2]
[331389324,1720323046718,-845.25,0.00014,2]
[331389349,1720323428293,284396.52711579,0.000225,120]
[331389350,1720323428328,214060.33738311,0.000225,120]
[331389351,1720323513252,662.68,0.00010803,2]
[331389352,1720323703243,565.12,0.00010959,2]
[331389353,1720323713976,470.94,0.00010959,2]
[331389354,1720323724710,392.45,0.00010959,2]
[331389355,1720323735210,327.04,0.00010959,2]
[331389356,1720323738374,2836.8224236,0.00011199,2]
[331389358,1720323745704,272.53,0.00010959,2]
[331389360,1720323752733,789.83801182,0.00011199,2]
[331389361,1720323753022,4475.0941168,0.00011199,2]
[331389362,1720323756213,227.11,0.00010959,2]
[331389363,1720323767179,189.26,0.00010959,2]
[331389364,1720323780251,157.72,0.00010959,2]
[331389365,1720323790735,788.6,0.00010959,2]
[331389366,1720323796533,3130.93857126,0.00011199,2]
[331389367,1720323843013,6710.19062126,0.00011199,2]
[331389368,1720323949531,10521.81940064,0.00011199,2]
[331389369,1720323962553,991.5117,0.00011199,2]
[331389370,1720323978151,1287.48512797,0.00011199,2]
[331389371,1720323982131,2038.62368927,0.00011199,2]
[331389372,1720323994453,159.53759203,0.00011199,2]
[331389373,1720324107135,1075.7185152,0.00011199,2]
[331389374,1720324121559,2380.85771837,0.00011199,2]
[331389375,1720324159973,629.54,0.00010097,2]
[331389377,1720324222845,649.33683349,0.00011199,2]
[331389378,1720324232519,-196.74437875,0.0001195,2]
[331389381,1720324232529,-402.61,0.0001196,2]
[331389384,1720324232539,-2015.41782731,0.00011968,2]
[331389385,1720324232551,-8108.30062772,0.00011968,2]
[331389386,1720324232563,-543.83019264,0.00011968,2]
[331389387,1720324232575,-854.8607206,0.00011968,2]
[331389388,1720324232587,-7499.01025656,0.00011968,2]
[331389394,1720324233251,755.31740263,0.00011199,2]
[331389395,1720324233765,-284.44037517,0.00011968,2]
[331389397,1720324233775,-250.0,0.00011976,2]
[331389399,1720324233785,-340.21,0.00011976,2]
[331389401,1720324233795,-200.0,0.0001199,2]
[331389403,1720324233806,-640.0,0.00012015,2]
[331389405,1720324233817,-250.0,0.00012041,2]
[331389407,1720324233827,-336.02,0.0001205,2]
[331389408,1720324233837,-708.37,0.0001205,2]
[331389410,1720324233847,-500.0,0.00012063,2]
[331389411,1720324233857,-224.99,0.00012151,2]
[331389412,1720324233867,-492.22,0.00012156,2]
[331389413,1720324233876,-170.78,0.00012158,2]
[331389414,1720324233885,-179.36,0.00012159,2]
[331389415,1720324233895,-492.22,0.0001219,2]
[331389416,1720324233904,-492.22,0.00012223,2]
[331389417,1720324233916,-360.0,0.00012242,2]
[331389418,1720324233926,-492.22,0.00012256,2]
[331389419,1720324233936,-492.22,0.0001229,2]
[331389420,1720324233948,-1354.4174776,0.00012302,2]
[331389421,1720324233958,-158.30479892,0.00012302,2]
[331389422,1720324233967,-458.56830439,0.00012314,2]
[331389423,1720324233982,-474.86366289,0.00012314,2]
[331389424,1720324233992,-492.22,0.00012323,2]
[331389425,1720324234001,-492.22,0.00012356,2]
[331389426,1720324234016,-629.54,0.00012361,2]
[331389427,1720324234026,-287.99713901,0.0001239,2]
[331389428,1720324234039,-204.22286099,0.0001239,2]
[331389429,1720324234048,-337.72161582,0.00012423,2]
[331389430,1720324234060,-154.49838418,0.00012423,2]
[331389431,1720324234070,-398.21377582,0.00012436,2]
[331389522,1720324240879,-200.03955327,0.00012239,2]
[331389523,1720324240889,-101.77622418,0.00012436,2]
[331389524,1720324240899,-492.22,0.00012456,2]
[331389525,1720324240910,-492.22,0.0001249,2]
[331389526,1720324240919,-492.22,0.00012523,2]
[331389527,1720324240928,-492.22,0.00012556,2]
[331389528,1720324240938,-422.61925827,0.0001259,2]
[331389529,1720324240950,-69.60074173,0.0001259,2]
[331389530,1720324240959,-150.0,0.000126,2]
[331389531,1720324240969,-492.22,0.00012623,2]
[331389532,1720324240980,-133.75408424,0.00012639,2]
[331389533,1720324240992,-44.15591576,0.00012639,2]
[331389535,1720324241001,-240.35519918,0.00012656,2]
[331389538,1720324241013,-251.86480082,0.00012656,2]
[331389541,1720324241023,-492.22,0.0001269,2]
[331389544,1720324241032,-3792.28,0.00012694,2]
[331389547,1720324241041,-2951.86447375,0.00012698,2]
[331389549,1720324241052,-840.41552625,0.00012698,2]
[331389551,1720324241061,-42.3638809,0.00012701,2]
[331389552,1720324241073,-3749.9161191,0.00012701,2]
[331389554,1720324241082,-3792.28,0.00012704,2]
[331389556,1720324241092,-3792.28,0.00012708,2]
[331389557,1720324241101,-3792.28,0.00012711,2]
[331389558,1720324241111,-3792.28,0.00012714,2]
[331389559,1720324241120,-3792.28,0.00012718,2]
[331389560,1720324241129,-3792.28,0.00012721,2]
[331389561,1720324241138,-492.22,0.00012723,2]
[331389562,1720324241147,-3792.28,0.00012724,2]
[331389563,1720324241156,-3792.28,0.00012728,2]
[331389564,1720324241165,-3792.28,0.00012731,2]
[331389565,1720324241175,-3792.28,0.00012734,2]
[331389566,1720324241184,-3792.28,0.00012738,2]
[331389567,1720324241193,-597.43199004,0.00012741,2]
[331389568,1720324241205,-257.82237684,0.00012741,2]
[331389569,1720324241216,-1500.0,0.00012741,2]
[331389570,1720324241227,-1100.92494121,0.00012741,2]
[331389571,1720324241238,-336.10069191,0.00012741,2]
[331389572,1720324241248,-96.20414007,0.00012744,2]
[331389573,1720324241259,-3486.1,0.00012744,2]
[331389574,1720324241270,-209.97585993,0.00012744,2]
[331389575,1720324241279,-1112.09462271,0.00012747,2]
[331389576,1720324241290,-3792.28,0.00012748,2]
[331389577,1720324241300,-3792.28,0.00012751,2]
[331389578,1720324241310,-1084.36951736,0.00012754,2]
[331389579,1720324241322,-948.90215079,0.00012754,2]
[331389580,1720324241335,-795.2682055,0.00012754,2]
[331389581,1720324241347,-963.74012635,0.00012754,2]
[331389582,1720324241357,-43.64284803,0.00012756,2]
[331389583,1720324241373,-448.57715197,0.00012756,2]
[331389584,1720324241389,-555.43893851,0.00012758,2]
[331389585,1720324241401,-3236.84106149,0.00012758,2]
[331389586,1720324241413,-492.22,0.0001279,2]
[331389587,1720324241423,-500.0,0.0001286,2]
[331389588,1720324241433,-500.0,0.0001286,2]
[331389589,1720324241442,-800.0,0.0001286,2]
[331389590,1720324241452,-582.0,0.00013068,2]
[331389591,1720324241462,-500.0,0.000132,4]
[331389592,1720324241472,-173.48,0.00013257,2]
[331389593,1720324241482,-1100.0,0.000133,4]
[331389594,1720324241491,-1600.0,0.000134,4]
[331389595,1720324241501,-155.45520773,0.00013472,2]
[331389596,1720324241511,-365.29215727,0.00013472,2]
[331389597,1720324241520,-297.70719904,0.00013472,2]
[331389598,1720324241530,-2114.22404625,0.000135,4]
[331389599,1720324241543,-85.77595375,0.000135,4]
[331389600,1720324241553,-188.36831363,0.00013516,2]
[331389601,1720324241563,-368.40970538,0.00013516,2]
[331389602,1720324241573,-259.59866042,0.00013517,2]
[331389603,1720324241706,-380.40133958,0.00013517,2]
[331389604,1720324241716,-155.0,0.00013543,2]
[331389605,1720324241725,-194.37924999,0.00013543,2]
[331389606,1720324241738,-150.88852215,0.00013543,2]
[331389607,1720324241750,-4.11147785,0.00013543,2]
[331389608,1720324241760,-185.48028366,0.00013543,2]
[331389609,1720324241770,-336.02,0.00013556,2]
[331389610,1720324241780,-2700.0,0.000136,4]
[331389611,1720324241789,-800.0,0.00013682,2]
[331389612,1720324241800,-2751.0,0.00013699,2]
[331389613,1720324241810,-1601.67,0.00013699,2]
[331389614,1720324241819,-250.0,0.00013699,2]
[331389615,1720324241829,-200.0,0.00013699,2]
[331389616,1720324241839,-307.26,0.00013699,2]
[331389617,1720324241848,-1500.0,0.00013699,5]
[331389618,1720324241857,-500.0,0.000137,5]
[331389619,1720324241867,-155.374,0.00013712,2]
[331389620,1720324241877,-155.374,0.00013712,2]
[331389621,1720324241887,-155.374,0.00013712,2]
[331389622,1720324241897,-155.374,0.00013712,2]
[331389623,1720324241907,-155.374,0.00013712,2]
[331389624,1720324241917,-155.374,0.00013712,2]
[331389625,1720324241927,-155.374,0.00013712,2]
[331389626,1720324241937,-155.374,0.00013712,2]
[331389627,1720324241946,-155.374,0.00013712,2]
[331389628,1720324241956,-360.0,0.00013772,2]
[331389629,1720324241965,-871.4263,0.0001378,2]
[331389630,1720324241975,-912.2249,0.0001378,2]
[331389631,1720324241989,-3739.7418,0.0001378,2]
[331389632,1720324241999,-209.25563205,0.0001378,2]
[331389633,1720324242009,-32372.89087021,0.0001378,2]
[331389634,1720324242019,-157.44470744,0.00013782,2]
[331389635,1720324242028,-162.26611922,0.00013782,2]
[331389636,1720324242038,-258.47034544,0.00013783,2]
[331389637,1720324242048,-745.0577,0.000138,2]
[331389638,1720324242057,-6629.2013,0.000138,2]
[331389639,1720324242067,-500.0,0.000138,5]
[331389640,1720324242076,-162.26611918,0.00013802,2]
[331389641,1720324242086,-258.47034544,0.00013812,2]
[331389642,1720324242095,-162.26611918,0.00013821,2]
[331389643,1720324242104,-162.26611918,0.00013841,2]
[331389644,1720324242113,-258.47034544,0.00013842,2]
[331389645,1720324242124,-504.23385468,0.00013849,2]
[331389646,1720324242133,-582.30808378,0.00013849,2]
[331389647,1720324242144,-5800.0,0.00013858,2]
[331389648,1720324242153,-35242.69109077,0.0001386,2]
[331389649,1720324242162,-162.26611918,0.00013861,2]
[331389650,1720324242172,-5800.0,0.00013866,2]
[331389651,1720324242182,-258.47034544,0.00013871,2]
[331389652,1720324242191,-5800.0,0.00013875,2]
[331389653,1720324242201,-5800.0,0.00013875,2]
[331389654,1720324242210,-500.0,0.00013879,2]
[331389655,1720324242220,-361.04411903,0.00013879,2]
[331389656,1720324242231,-182.28193309,0.00013879,2]
[331389657,1720324242240,-954312.06824213,0.0001388,2]
[331389658,1720324242249,-162.26611918,0.0001388,2]
[331389659,1720324242260,-32372.89087018,0.00013882,2]
[331389660,1720324242269,-160.0,0.00013882,2]
[331389661,1720324242278,-5800.0,0.00013883,2]
[331389662,1720324242287,-5800.0,0.00013883,2]
[331389663,1720324242297,-500.0,0.00013888,2]
[331389664,1720324242307,-200.0,0.00013888,2]
[331389665,1720324242316,-500.0,0.00013889,2]
[331389666,1720324242326,-574.87397245,0.00013889,2]
[331389667,1720324242336,-531.45264641,0.00013889,2]
[331389668,1720324242346,-162.85545149,0.00013889,2]
[331389669,1720324242356,-170.17259749,0.00013889,2]
[331389670,1720324242365,-309.88,0.0001389,3]
[331389671,1720324242374,-160.0,0.00013891,2]
[331389672,1720324242384,-58000.0,0.00013891,2]
[331389673,1720324242393,-5800.0,0.00013891,2]
[331389674,1720324242403,-5800.0,0.00013891,2]
[331389675,1720324242412,-521.96964645,0.00013899,2]
[331389676,1720324242422,-266.5047714,0.00013899,2]
[331389677,1720324242431,-5800.0,0.000139,2]
[331389678,1720324242441,-319.60947156,0.000139,2]
[331389679,1720324242450,-13542.8027,0.000139,2]
[331389680,1720324242460,-128645.6397,0.000139,2]
[331389681,1720324242469,-160.0,0.000139,2]
[331389682,1720324242479,-258.47034544,0.000139,2]
[331389683,1720324242488,-58000.0,0.000139,2]
[331389684,1720324242497,-500.0,0.000139,5]
[331389685,1720324242507,-5800.0,0.000139,2]
[331389686,1720324242516,-162.26611918,0.000139,2]
[331389687,1720324242525,-209.25563204,0.000139,2]
[331389688,1720324242535,-12420.94814067,0.000139,2]
[331389689,1720324242545,-450.40322078,0.000139,2]
[331389690,1720324242554,-173.48,0.0001396,2]
[331389691,1720324242563,-417.66776565,0.00013969,2]
[331389692,1720324242573,-519.24,0.00013973,3]
[331389693,1720324242582,-32372.89087018,0.00013984,2]
[331389694,1720324242592,-1416.0424982,0.00013989,2]
[331389695,1720324242601,-3884.7539286,0.00013989,2]
[331389696,1720324242612,-863.17458148,0.00013989,2]
[331389697,1720324242622,-307.9077347,0.00013989,2]
[331389698,1720324242631,-444.2458266,0.00013989,2]
[331389699,1720324242641,-45575.7413303,0.00013989,2]
[331389700,1720324242655,-14630.0121643,0.00013989,2]
[331389701,1720324242665,-2338.2934316,0.00013989,2]
[331389702,1720324242675,-286.254081,0.00013989,2]
[331389703,1720324242684,-155.94163279,0.00013989,2]
[331389704,1720324242695,-188.04824218,0.00013989,2]
[331389705,1720324242705,-155.13012986,0.00013989,2]
[331389706,1720324242715,-197.15373357,0.00013989,2]
[331389707,1720324242727,-197.53030204,0.00013989,2]
[331389708,1720324242737,-654.37201286,0.00013989,2]
[331389709,1720324242747,-279.98357731,0.00013989,2]
[331389710,1720324242757,-1182.8119691,0.0001399,2]
[331389711,1720324242768,-949.58144,0.0001399,2]
[331389712,1720324242778,-716.3509108,0.0001399,2]
[331389713,1720324242787,-3244.912105,0.0001399,2]
[331389714,1720324242796,-2605.0702815,0.0001399,2]
[331389715,1720324242807,-1965.228458,0.0001399,2]
[331389716,1720324242818,-444.2458266,0.0001399,2]
[331389717,1720324242829,-444.2458266,0.0001399,2]
[331389718,1720324242840,-444.2458266,0.0001399,2]
[331389719,1720324242849,-38079.2510465,0.0001399,2]
[331389720,1720324242859,-30582.7607627,0.0001399,2]
[331389721,1720324242869,-23086.2704789,0.0001399,2]
[331389722,1720324242879,-12223.6060184,0.0001399,2]
[331389723,1720324242895,-9817.1998725,0.0001399,2]
[331389724,1720324242911,-7410.7937265,0.0001399,2]
[331389725,1720324242921,-1953.6810593,0.0001399,2]
[331389726,1720324242931,-1569.0686871,0.0001399,2]
[331389727,1720324242942,-1184.4563148,0.0001399,2]
[331389728,1720324242953,-80888.10192998,0.00013997,2]
[331389729,1720324242962,-150.01,0.00013999,2]
[331389730,1720324242973,-845.20294695,0.00013999,2]
[331389731,1720324242982,-1103.1394155,0.00013999,5]
[331389732,1720324242993,-370.95479302,0.00013999,2]
[331389733,1720324243004,-252.5717892,0.00013999,2]
[331389734,1720324243015,-155.09554218,0.00013999,2]
[331389735,1720324243026,-155.0,0.00013999,2]
[331389736,1720324243036,-9890.0,0.00014,2]
[331389737,1720324243048,-316070.98051282,0.00014,2]
[331389738,1720324243059,-4159151.94715544,0.00014,2]
[331389739,1720324243071,-444509.74265719,0.00014,2]
[331389740,1720324243089,-21513.17267246,0.00014,2]
[331389741,1720324243100,-278.81450347,0.00014,2]
[331389742,1720324244122,-413.21120921,0.00012239,2]
[331389744,1720324244132,-259.04390649,0.00013516,2]
[331389746,1720324244142,-157.27225688,0.00013999,2]
[331389748,1720324244152,-13.21585258,0.00014,2]
[331389750,1720324244165,-1064.00008,0.00014,2]
[331389752,1720324244176,-1165.39763693,0.00014,2]
[331389774,1720324246096,-491.17738994,0.00014,2]
[331389775,1720324246108,-1605.35180376,0.00014,2]
[331389776,1720324246121,-338.5543761,0.00014,2]
[331389777,1720324246136,-1220.0,0.00014,2]
[331389786,1720324246924,-584.82021014,0.000139,2]
[331389789,1720324246937,-3588.19231087,0.000139,2]
[331389791,1720324246946,-234.85768913,0.00013999,2]
[331389793,1720324246958,-328.61094217,0.00013999,2]
[331389795,1720324246968,-1140.83905783,0.00014,2]
[331389797,1720324246982,-40451.97495834,0.00014,2]
[331389799,1720324246993,-1349.08580306,0.00014,2]
[331389802,1720324247006,-2833.19790217,0.00014,2]
[331389826,1720324691795,259.52187406,0.00011199,2]
[331389827,1720324723368,165.01501106,0.00011199,2]
[331389828,1720324724039,266.36672678,0.00011199,2]
[331389829,1720324742638,228.72559378,0.00011199,2]
[331389830,1720324745046,275696.38517494,0.00011199,2]
[331389831,1720324781125,447.9625138,0.00011199,2]
[331389832,1720324813366,155.0,0.00011199,2]
[331389833,1720324954478,566.58,0.00010704,2]
[331389834,1720325028138,258.32817916,0.00011199,2]
[331389835,1720325086779,329.65946051,0.00011199,2]
[331389836,1720325087562,295.27845213,0.00011199,2]
[331389837,1720325091277,253.52952194,0.00011199,2]
[331389838,1720325129700,297.22447281,0.00011199,2]
[331389840,1720325155148,376.91547979,0.00011199,2]
[331389841,1720325178205,400.44480684,0.00011199,2]
[331389842,1720325208424,493.38759204,0.00011199,2]
[331389843,1720325238750,245.1749505,0.00011199,2]
[331389846,1720325279985,444.86169178,0.00011199,2]
[331389847,1720325369924,155.0,0.00011199,2]
[331389853,1720325432622,-937.07308969,0.00011868,2]
[331389855,1720325432633,-2347.83063545,0.00011868,2]
[331389856,1720325432650,-8561.41777486,0.00011868,2]
[331389857,1720325432659,-156.08364642,0.000126,2]
[331389859,1720325432669,-500.0,0.0001286,2]
[331389861,1720325432678,-500.0,0.0001286,2]
[331389863,1720325432692,-700.0,0.0001286,2]
[331389865,1720325432702,-250.0,0.00012867,2]
[331389866,1720325432711,-566.58,0.00012968,2]
[331389867,1720325432720,-1000.0,0.00012993,2]
[331389868,1720325432730,-198.38,0.00013046,2]
[331389869,1720325432739,-155.0,0.00013574,2]
[331389870,1720325432748,-1017.0,0.000136,2]
[331389871,1720325432757,-700.0,0.00013682,2]
[331389872,1720325432767,-250.0,0.00013699,2]
[331389873,1720325432776,-153.63,0.00013699,2]
[331389874,1720325432785,-22264.62741318,0.00013699,2]
[331389875,1720325432798,-7735.36258682,0.00013699,2]
[331389876,1720325432807,-4417.99,0.00013699,2]
[331389877,1720325432816,-19999.99,0.00013699,2]
[331389878,1720325432826,-9499.15,0.00013699,2]
[331389879,1720325432835,-6253.54,0.00013699,2]
[331389880,1720325432844,-1659.0,0.0001372,2]
[331389881,1720325432853,-361.0,0.0001372,2]
[331389882,1720325432863,-150.0,0.0001372,2]
[331389883,1720325432873,-681.507,0.0001372,2]
[331389884,1720325432883,-444.0,0.0001372,2]
[331389885,1720325432894,-829.197,0.0001372,2]
[331389886,1720325432905,-451.087,0.0001372,2]
[331389887,1720325432916,-2376.0,0.0001372,2]
[331389888,1720325432928,-1313.712,0.0001372,2]
[331389889,1720325432940,-152.287,0.0001372,2]
[331389890,1720325432952,-285.321,0.0001372,2]
[331389891,1720325432962,-3250.0,0.0001372,2]